Cogmind - Beta 10.2 @@@ ROGUE MODE // 2021.06.09 @ 22:19:52 Player: The Phoenix Tome Result: Destroyed by G-73 Enforcer with Heavy Laser Performance ------------- Evolutions (8) 4000 Regions Visited (28) 5600 Robots Destroyed (302) 1510 Value Destroyed (16172) 16172 Prototype IDs (65) 1300 Alien Tech Used (3) 600 Bonus (7673) 7673 TOTAL SCORE: 36855 Bonus ------- High Alert Combat Kills 1766 Follower Combat Kills 1831 Entered Garrisons 1000 Used RIF Installer 2500 Aligned with FarCom 300 Met Data Miner 300 Met Zhirov 300 Friendly Fire -324 Cogmind --------- Core Integrity 0/1450 Matter 295/300 Energy 100/100 System Corruption 31% Temperature Cool (6) Movement Core (50) Location -2/Garrison Parts ------- > --- POWER (2) -------- (None) > --- PROPULSION (6) --- (None) > --- UTILITY (12) ----- Experimental Optical Array Advanced Target Analyzer > --- WEAPON (4) ------- (None) > --- INVENTORY (4) ---- Smartbomb Launcher Advanced Remote Datajack Phasing Sabre Peak State ------------ > --- POWER ------------ Vortex Chain Reactor > --- PROPULSION ------- Advanced Medium Treads Armored Huge Wheel Armored Huge Wheel High-density Centrium Wheel > --- UTILITY ---------- Improved Coolant Injector High-capacity Storage Unit High-capacity Storage Unit High-capacity Storage Unit Energy Well Experimental Optical Array Advanced Targeting Computer Advanced Target Analyzer Precision Energy Filter Heavy Armor Plating Advanced Shield Generator > --- WEAPON ----------- Quantum Rifle Quantum Rifle Quantum Rifle Railgun > --- INVENTORY -------- Vortex Chain Reactor Medium Treads Medium Treads Armored Huge Wheel Centrium Wheel Matter Compressor Layered Light Armor Plating Layered Light Armor Plating Medium Reflective Plating Medium Reflective Plating Relay Coupler [NC] Long-range Tractor Beam Gamma Rifle Gamma Rifle Gamma Rifle Quantum Rifle Enhanced Quantum Rifle Enhanced Quantum Rifle Compact HERF Cannon Heavy Neutron Cannon Light Antimatter Cannon Light Antimatter Cannon Smartbomb Launcher Advanced Remote Datajack Phasing Sabre [Rating: 150] Favorites ----------- Power Enhanced Nuclear Core Engine Improved Deuterium Engine Power Core Enhanced Nuclear Core Reactor Light Antimatter Reactor Propulsion Light Treads Treads Light Treads Leg Carbon-fiber Leg Wheel Armored Huge Wheel Hover Unit Combat Antigrav System Utility High-capacity Storage Unit Device Advanced Terrain Scanner Storage High-capacity Storage Unit Processor Advanced Targeting Computer Hackware Relay Coupler [NC] Protection Heavy Armor Plating Weapon Precision Assault Rifle Energy Gun Electrolaser Energy Cannon Neutron Cannon Ballistic Gun Precision Assault Rifle Ballistic Cannon Light Cannon Launcher Mini Grenade Launcher Special Weapon Remote Datajack Impact Weapon Heavy Hammer Slashing Weapon Phasing Sabre Piercing Weapon Lance Build | -11 -10 -10 -9 -9 -9 -8 -8 -7 -7 -7 -7 -6 -6 -6 -6 -6 -5 -5 -5 -5 -5 -5 -4 -4 -4 -3 -2 -2 ------- Run | Scr Mat Min Mat Min Exi Min Mat Fac Low Low Dat Pro Fac Gar Fac Gar Fac Gar Fac Upp Upp Zhi Pro Fac Gar Res Res Gar Slots Evolved 16 | . . . 2 . . . 2 2 . . . . 2 . . . 2 . . . . . . 2 . 2 2 . Power 1 | . . . . . . . . . . . . . . . . . . . . . . . . 1 . . . . Propulsion 3 | . . . 1 . . . . 1 . . . . . . . . . . . . . . . . . 1 . . Utility 10 | . . . 1 . . . 1 1 . . . . 2 . . . 2 . . . . . . . . 1 2 . Weapon 2 | . . . . . . . 1 . . . . . . . . . . . . . . . . 1 . . . . Parts Attached 455 | . 21 10 8 11 . 5 15 11 10 11 . 3 16 8 3 15 26 25 25 13 17 10 17 31 38 27 79 . Power 20 | . 3 1 . 1 . . . 1 . . . . . . . . 1 1 . . . 1 . 1 3 2 5 . Engine 4 | . 3 . . 1 . . . . . . . . . . . . . . . . . . . . . . . . Core 4 | . . 1 . . . . . 1 . . . . . . . . 1 1 . . . . . . . . . . Reactor 12 | . . . . . . . . . . . . . . . . . . . . . . 1 . 1 3 2 5 . Propulsion 97 | . 8 2 4 4 . 3 8 3 . 1 . . 3 . . 5 6 6 6 2 5 3 2 6 4 5 11 . Treads 55 | . 5 1 4 2 . 2 4 2 . 1 . . 3 . . 5 1 . 6 2 2 . 2 5 2 . 6 . Leg 22 | . . . . . . . . . . . . . . . . . 5 6 . . 2 3 . 1 2 3 . . Wheel 19 | . 3 1 . 2 . 1 4 1 . . . . . . . . . . . . 1 . . . . 2 4 . Hover 1 | . . . . . . . . . . . . . . . . . . . . . . . . . . . 1 . Flight . | . . . . . . . . . . . . . . . . . . . . . . . . . . . . . Utility 129 | . 4 1 3 1 . . 5 4 1 4 . . 3 3 1 3 6 12 9 3 5 3 1 11 12 9 25 . Device 52 | . 1 . 1 . . . 2 2 . 1 . . 1 1 1 . 2 4 5 2 3 3 . 7 3 4 9 . Storage 9 | . 2 . 2 . . . . . 1 . . . . . . . . . . . . . . 2 1 1 . . Processor 8 | . . . . . . . . . . . . . 1 1 . . 1 . 1 . . . 1 . . 1 2 . Hackware 19 | . . . . . . . . . . . . . . . . 2 1 5 2 1 2 . . . 4 1 1 . Protection 41 | . 1 1 . 1 . . 3 2 . 3 . . 1 1 . 1 2 3 1 . . . . 2 4 2 13 . Artifact . | . . . . . . . . . . . . . . . . . . . . . . . . . . . . . Weapon 209 | . 6 6 1 5 . 2 2 3 9 6 . 3 10 5 2 7 13 6 10 8 7 3 14 13 19 11 38 . Energy Gun 45 | . 1 . . . . . . . . . . . . . . . . 1 3 . . . 7 2 9 5 17 . Energy Cannon 15 | . . . . . . . . . . . . . 1 . 1 . 3 . . . . . . 3 3 2 2 . Ballistic Gun 74 | . 3 . . 4 . 1 2 2 5 4 . 2 6 3 1 4 8 2 3 6 4 3 4 2 . 1 4 . Ballistic Cannon 17 | . 1 3 1 . . . . . . . . . . . . . . . . . . . . 2 2 2 6 . Launcher 25 | . 1 3 . 1 . 1 . . 1 2 . 1 2 1 . . 2 1 1 . . . 2 3 . . 3 . Special Weapon 21 | . . . . . . . . . . . . . . . . 3 . 2 2 2 3 . 1 1 4 1 2 . Impact Weapon 4 | . . . . . . . . 1 3 . . . . . . . . . . . . . . . . . . . Slashing Weapon 7 | . . . . . . . . . . . . . 1 1 . . . . . . . . . . 1 . 4 . Piercing Weapon 1 | . . . . . . . . . . . . . . . . . . . 1 . . . . . . . . . Special Melee Weapon . | . . . . . . . . . . . . . . . . . . . . . . . . . . . . . Unidentified Prototypes 19 | . . . . . . . 1 2 . . . . 1 . . . . . 2 . . 4 . 2 . 3 4 . Parts Lost 111 | . 1 1 . . . 1 1 . . 1 . . 3 3 . 6 9 2 4 3 8 . 12 4 16 3 33 . Power 4 | . . . . . . . . . . . . . . . . . . . . . . . . . 2 . 2 . Propulsion 35 | . . . . . . 1 . . . . . . 1 . . 4 4 . 1 2 4 . 2 2 4 2 8 . Utility 36 | . . 1 . . . . 1 . . 1 . . 1 2 . 2 2 1 2 . 3 . 3 . 3 . 14 . Weapon 36 | . 1 . . . . . . . . . . . 1 1 . . 3 1 1 1 1 . 7 2 7 1 9 . Highest Loss Streak 24 | . 1 1 . . . 1 1 . . 1 . . 2 1 . 3 3 1 3 2 3 . 7 2 14 1 24 . Average Slot Usage (%) 92 | . 96 100 99 100 100 99 100 86 84 86 92 92 92 92 93 91 93 99 95 93 93 83 94 91 93 91 84 8 Engine 1 | . 14 10 . 5 11 11 9 6 . . . . . . . . . . . . . . . . . . . . Core 3 | . . 3 11 5 . . . . 7 7 7 7 6 6 6 6 5 5 5 5 5 3 . . . . . . Reactor 2 | . . . . . . . . . . . . . . . . . . . . . . 1 5 10 9 9 6 . Treads 13 | . 15 14 21 22 22 22 20 17 15 15 15 15 17 18 18 24 22 . 13 21 17 8 2 12 11 3 2 . Leg 4 | . 4 . . . . . . . . . . . . . . . 1 27 10 . 3 15 23 9 7 10 . . Wheel 4 | . 7 13 11 10 11 10 6 7 7 7 7 7 6 6 6 2 . . . . . 3 . . . 5 11 . Device 6 | . 2 . 3 . . . 1 6 2 . 7 7 12 12 12 3 . 6 11 13 12 10 7 8 9 9 8 . Storage 17 | . 14 14 18 22 22 22 18 15 19 23 23 23 18 18 18 18 16 16 16 16 16 16 16 17 19 18 15 . Processor 6 | . . . . . . . . . . . . . 5 6 6 6 10 5 6 11 11 11 11 12 10 9 11 8 Hackware 3 | . . . . . . . . . . . . . . . . 3 9 11 10 8 7 11 9 1 1 2 . . Protection 6 | . 7 14 11 11 11 11 16 7 7 8 7 7 6 5 6 5 8 8 3 . . . . 2 4 4 7 . Energy Gun 3 | . 2 . . . . . . . . . . . . . . . . 4 4 . . . 3 5 14 12 7 . Ballistic Gun 12 | . 16 14 11 20 22 19 27 22 22 22 23 23 17 15 17 17 14 8 9 16 15 1 12 4 . 1 2 . Ballistic Cannon 1 | . 8 12 11 . . . . . . . . . . . . . . . . . . . . . . 1 2 . Naked Turns . | . . . . . . . . . . . . . . . . . . . . . . . . . . . . . Heaviest Build 201 | 9 33 38 86 89 89 89 100 108 129 136 136 136 137 125 130 131 137 140 143 138 139 131 131 185 181 176 201 . Greatest Support 154 | 20 40 40 20 60 10 40 60 28 48 28 28 28 78 78 28 118 113 90 149 154 154 90 120 153 153 110 76 3 Greatest Overweight (x) 10 | . 3 3 8 8 8 8 9 10 4 4 4 4 4 4 4 4 2 1 1 1 2 3 1 1 4 5 6 . Average Overweight (x) 2 | . 1 2 5 7 8 7 7 4 3 4 4 4 3 3 4 2 1 1 . . . 1 1 1 1 1 2 . Largest Inventory Capacity 28 | 6 10 10 20 20 20 20 20 20 28 28 28 28 28 28 28 28 28 28 28 28 28 28 28 28 28 28 28 4 Average Capacity 25 | 6 6 10 16 20 20 20 20 20 24 28 28 28 28 28 28 28 28 28 28 28 28 28 28 28 28 28 27 4 Most Carried 28 | 6 10 10 18 20 20 20 20 20 21 28 28 28 28 25 25 28 28 28 28 28 28 28 26 28 28 28 28 4 Average Carried 23 | 6 6 9 13 19 19 19 19 19 20 25 28 27 25 24 24 26 26 25 27 27 25 27 23 22 27 27 25 4 Final Capacity 28 | 6 10 10 20 20 20 20 20 20 28 28 28 28 28 28 28 28 28 28 28 28 28 28 28 28 28 28 4 4 Final Carried 28 | 6 10 9 18 20 20 20 20 20 21 28 28 28 25 24 24 28 22 28 28 28 25 26 18 28 28 28 4 4 Class Distribution -------------------- 19% | Hauler-Tank 13% | Hauler-Mutant 11% | Bothacker-Gunner 9% | Hauler-Skirmisher 8% | Bothacker-Mutant 8% | Bothacker-Skirmisher 7% | Scavenger-Gunner 6% | Mutant 5% | Hauler-Gunner 5% | Scavenger-Mutant Dominant Class ---------------- Mutant | -10/Materials Mutant | -10/Mines Hauler-Mutant | -9/Materials Hauler-Mutant | -9/Mines Hauler-Mutant | -9/Exiles Hauler-Mutant | -8/Mines Hauler-Tank | -8/Materials Hauler-Skirmisher | -7/Factory Hauler-Tank | -7/Lower Caves Hauler-Tank | -7/Lower Caves Hauler-Tank | -7/Data Miner Hauler-Tank | -6/Proximity Caves Hauler-Skirmisher | -6/Factory Hauler-Skirmisher | -6/Garrison Bothacker-Skirmisher | -6/Factory Bothacker-Skirmisher | -6/Garrison Bothacker-Mutant | -5/Factory Bothacker-Mutant | -5/Garrison Bothacker-Skirmisher | -5/Factory Bothacker-Gunner | -5/Upper Caves Bothacker-Gunner | -5/Upper Caves Bothacker-Mutant | -5/Zhirov Bothacker-Gunner | -4/Proximity Caves Hauler-Gunner | -4/Factory Scavenger-Mutant | -4/Garrison Scavenger-Gunner | -3/Research Hauler-Tank | -2/Research Mutant | -2/Garrison Resources | -11 -10 -10 -9 -9 -9 -8 -8 -7 -7 -7 -7 -6 -6 -6 -6 -6 -5 -5 -5 -5 -5 -5 -4 -4 -4 -3 -2 -2 ----------- Run | Scr Mat Min Mat Min Exi Min Mat Fac Low Low Dat Pro Fac Gar Fac Gar Fac Gar Fac Upp Upp Zhi Pro Fac Gar Res Res Gar Matter Collected 12203 | 203 357 427 41 382 . 147 417 187 293 303 . 62 1026 391 . 844 1002 601 591 294 590 . 600 443 794 598 1610 . Remotely . | . . . . . . . . . . . . . . . . . . . . . . . . . . . . . Salvage Created 14803 | 81 442 55 41 248 . 316 703 313 484 428 . 22 803 221 . 760 965 283 1214 236 440 . 1163 389 1214 959 3023 . Parts 595 | 2 29 3 2 24 . 13 41 15 15 17 . . 48 14 . 33 37 10 40 10 18 . 43 13 30 32 106 . Haulers Intercepted 12 | . 2 . 1 . . . 3 1 . . . . 1 . . . . . 2 . . . . . . . 2 . Recyclers Shooed 14 | . . . 1 . . 2 . . . . . . . . . . 5 . 2 . . . . . . 1 3 . Parts Field Recycled . | . . . . . . . . . . . . . . . . . . . . . . . . . . . . . Retrieved Matter . | . . . . . . . . . . . . . . . . . . . . . . . . . . . . . Parts Self-Destructed 146 | . . . . . . . . . 12 29 . 13 . . . . . . . 24 27 . 41 . . . . . Prevented . | . . . . . . . . . . . . . . . . . . . . . . . . . . . . . Kills | -11 -10 -10 -9 -9 -9 -8 -8 -7 -7 -7 -7 -6 -6 -6 -6 -6 -5 -5 -5 -5 -5 -5 -4 -4 -4 -3 -2 -2 ------- Run | Scr Mat Min Mat Min Exi Min Mat Fac Low Low Dat Pro Fac Gar Fac Gar Fac Gar Fac Upp Upp Zhi Pro Fac Gar Res Res Gar Combat Hostiles Destroyed 262 | . 10 11 . 10 . 8 10 2 9 10 . 1 21 10 . 16 19 8 9 4 11 . 18 7 20 11 37 . Melee 1 | . . . . . . . . . . . . . . . . . 1 . . . . . . . . . . . Guns 168 | . 6 5 . 8 . 3 10 2 6 5 . 1 16 2 . 16 11 5 8 4 11 . 13 . 9 7 20 . Cannons 22 | . 2 . . . . . . . . . . . . . . . . . . . . . . 4 9 1 6 . AOE 61 | . 2 6 . 2 . 5 . . 3 5 . . 5 8 . . 7 3 . . . . 4 2 . . 9 . Classes Destroyed 19 | 1 5 1 . 1 . 3 2 1 1 2 . . . . . . . . . . . . . . 1 1 . . Worker 9 | . . . . . . 1 . 1 . . . . 1 . . . . . . . . . . 2 . . 4 . Builder 6 | . . . . 1 . . . . . . . . 1 . . . 1 . . . . . . 2 . . 1 . Tunneler 6 | . 1 . . 1 . . 1 . . . . . 1 . . . . . 1 . . . . . . . 1 . Hauler 12 | . 2 . 1 . . . 3 1 . . . . 1 . . . . . 2 . . . . . . . 2 . Recycler 14 | 1 . . . . . . 2 2 . . . . . . . . 1 . 4 . . . . . . 1 3 . Operator 1 | . . . . . . . . . . . . . . . . . . . . . . . . . . 1 . . Watcher 9 | . 2 . . . . . . . . . . . 2 . . . 1 . . . . . . . . 1 3 . Swarmer 56 | . 3 2 . 6 . . 4 . . . . 1 4 8 . 6 4 1 3 . 6 . 2 . . . 6 . Grunt 110 | . 7 . . 4 . 5 2 1 8 3 . . 3 2 . 9 9 7 1 . 4 . 12 4 13 5 11 . Brawler 8 | . . . . . . 1 . . . 3 . . . . . . 1 . 1 . . . 2 . . . . . Duelist 6 | . . . . . . . 1 . . 1 . . . . . . 1 . . 2 1 . . . . . . . Protector 2 | . . . . . . . . . . 1 . . . . . . . . . . . . 1 . . . . . Sentry 16 | . . . . . . . 2 . . 1 . . . . . 1 . . . . . . 1 1 . 1 9 . Hunter 15 | . . . . . . 2 1 . . . . . . . . . . . 3 1 . . . . 4 . 4 . Programmer 29 | . . . . . . . . 1 . . . . 6 . . . 4 . 1 1 . . . 2 2 5 7 . Behemoth 1 | . . . . . . . . . . . . . . . . . . . . . . . . . 1 . . . Thief 1 | . . . . . . . . . . 1 . . . . . . . . . . . . . . . . . . Assembled 17 | . . 9 . . . . . . . . . . 8 . . . . . . . . . . . . . . . Mutant 1 | . . . . . . . . . 1 . . . . . . . . . . . . . . . . . . . Best Kill Streak 9 | 1 3 5 1 5 . 6 4 3 4 5 . 1 8 4 . 2 7 4 5 2 5 . 6 4 5 3 9 . Combat Bots Only 7 | . 3 5 . 4 . 5 3 1 4 5 . 1 7 4 . 2 6 4 3 2 5 . 6 3 5 3 5 . Max Kills in Single Turn 5 | 1 2 2 1 1 . 3 2 1 3 2 . 1 2 2 . 1 3 2 1 1 2 . 2 3 1 1 5 . Gunslinging 1 | . . . . . . . . . . . . . . . . . 1 . . . 1 . 1 . . . 1 . Exploded 5 | . 2 2 . 1 . 3 . . 3 2 . . 2 2 . . 2 2 . . . . 2 1 . . 5 . Melee 1 | . . . . . . . . . . . . . . . . . 1 . . . . . . . . . . . Uniques/NPCs Destroyed . | . . . . . . . . . . . . . . . . . . . . . . . . . . . . . Combat | -11 -10 -10 -9 -9 -9 -8 -8 -7 -7 -7 -7 -6 -6 -6 -6 -6 -5 -5 -5 -5 -5 -5 -4 -4 -4 -3 -2 -2 -------- Run | Scr Mat Min Mat Min Exi Min Mat Fac Low Low Dat Pro Fac Gar Fac Gar Fac Gar Fac Upp Upp Zhi Pro Fac Gar Res Res Gar Damage Taken 25836 | . 616 427 57 244 . 321 284 15 367 229 . 196 1218 321 . 1072 1323 533 1303 883 1616 . 2348 523 2939 764 8003 234 Core 2934 | . 79 62 17 16 . 13 . . . 43 . 8 29 34 . 113 119 73 71 109 194 . 322 16 186 51 1145 234 Absorbed by Shields 3281 | . . . . . . . . . . . . . . . . . . . . . . . . 86 924 573 1662 36 Reduced by Siege Mode 201 | . . . . . . . . . . . . . . . . . . . 5 69 . . . . 105 22 . . Core Remaining (%) 76 | 100 . 43 . . . 88 100 . . . . 92 . . . 79 . . . . . . 11 . 82 96 . . Volleys Fired 890 | 3 46 24 5 21 . 11 30 8 18 18 . 3 67 20 1 78 58 49 44 12 33 . 48 30 96 45 122 . Largest 4 | 2 2 2 2 2 . 2 3 3 3 3 . 3 3 3 1 3 3 3 3 3 3 . 3 3 4 4 4 . Hottest 349 | 60 85 55 55 51 . 61 86 86 78 81 . 81 90 81 90 81 90 131 131 84 84 . 146 268 349 308 317 . Shots Fired 2166 | 6 85 42 10 39 . 17 82 24 52 44 . 5 194 38 1 172 124 79 121 32 95 . 128 54 201 156 365 . Gun 1795 | 6 72 21 5 36 . 12 82 24 51 39 . 3 187 31 . 168 102 61 118 31 93 . 124 21 107 115 286 . Cannon 263 | . 11 15 5 . . . . . . . . . 2 . 1 . 15 . . . . . . 26 84 40 64 . Launcher 70 | . 2 6 . 3 . 5 . . 1 5 . 2 5 7 . . 7 6 1 . . . 2 6 . . 12 . Special 38 | . . . . . . . . . . . . . . . . 4 . 12 2 1 2 . 2 1 10 1 3 . Kinetic 1342 | 3 68 36 10 36 . 12 82 24 51 39 . 3 187 31 . 168 102 29 81 31 93 . 75 7 32 32 110 . Thermal 636 | 3 15 . . . . . . . . . . . 2 . 1 . 15 32 37 . . . 49 40 159 108 175 . Explosive 70 | . 2 6 . 3 . 5 . . 1 5 . 2 5 7 . . 7 6 1 . . . 2 6 . . 12 . Electromagnetic 80 | . . . . . . . . . . . . . . . . . . . . . . . . . . 15 65 . Robot Hit Streak 41 | 1 13 9 10 9 . 7 12 12 10 11 . 7 12 17 . 16 20 13 17 15 23 . 41 8 37 29 19 . Robot Miss Streak 8 | 2 4 2 1 3 . 1 4 3 4 3 . 1 5 1 . 6 3 3 8 1 1 . 4 2 2 6 5 . Penetration Max 1 | . . . . . . . 1 . . . . . . . . . . . . . 1 . 1 . . . 1 . Secondary Targets 36 | . 1 . . 2 . 1 1 . 1 . . . 1 . . 3 3 . 3 2 7 . 6 . 1 . 4 . Max Gunslinging Chain 2 | . 1 . . 1 . 1 1 . 1 . . . 1 . . 1 1 . 1 1 2 . 2 . 1 . 1 . Shots Hit Robots 1515 | 2 53 27 8 27 . 11 46 12 41 38 . 4 137 27 . 108 99 48 99 28 80 . 107 30 144 95 244 . Core Hits 869 | 2 28 21 3 14 . 15 21 8 30 43 . 5 65 18 . 62 86 39 68 8 32 . 58 26 61 34 122 . Critical Hits 38 | . . 1 . 1 . 1 2 . . . . . 1 1 . 1 . . . . 1 . 2 3 8 7 9 . Critical Kills 15 | . . 1 . 1 . 1 1 . . . . . . . . . . . . . . . . 1 3 2 5 . Critical Parts Destroyed 22 | . . . . . . . 1 . . . . . 1 1 . 1 . . . . 1 . 2 2 5 5 3 . Melee Attacks 24 | . . . . . . . . 4 3 . . . 1 2 . . . . . . . . . . 1 . 13 . Impact 7 | . . . . . . . . 4 3 . . . . . . . . . . . . . . . . . . . Slashing 17 | . . . . . . . . . . . . . 1 2 . . . . . . . . . . 1 . 13 . Piercing . | . . . . . . . . . . . . . . . . . . . . . . . . . . . . . Sneak Attacks . | . . . . . . . . . . . . . . . . . . . . . . . . . . . . . Combat Hostiles . | . . . . . . . . . . . . . . . . . . . . . . . . . . . . . Follow-up Attacks . | . . . . . . . . . . . . . . . . . . . . . . . . . . . . . Damage Inflicted 39973 | 20 894 661 133 648 . 755 968 275 912 1382 . 201 2883 926 . 1593 2559 1448 2061 554 1405 . 2855 1664 3424 2191 9561 . Guns 25837 | 20 597 191 64 424 . 185 965 264 716 642 . 47 2323 335 . 1593 1322 749 2040 554 1405 . 2274 403 1707 1496 5521 . Cannons 4049 | . 143 152 69 . . . . . . . . . . . . . . . . . . . . 440 1717 695 833 . Explosions 10011 | . 154 318 . 218 . 569 . . 196 740 . 154 540 591 . . 1233 699 . . . . 581 821 . . 3197 . Melee . | . . . . . . . . . . . . . . . . . . . . . . . . . . . . . Ramming 76 | . . . . 6 . 1 3 11 . . . . 20 . . . 4 . 21 . . . . . . . 10 . Kinetic 17681 | 9 587 343 133 424 . 185 965 264 716 642 . 47 2323 335 . 1593 1322 460 1285 554 1405 . 1176 77 685 372 1779 . Thermal 11133 | 11 153 . . . . . . . . . . . . . . . . 289 755 . . . 1098 766 2739 1679 3643 . Explosive 10011 | . 154 318 . 218 . 569 . . 196 740 . 154 540 591 . . 1233 699 . . . . 581 821 . . 3197 . Electromagnetic 1072 | . . . . . . . . . . . . . . . . . . . . . . . . . . 140 932 . Impact . | . . . . . . . . . . . . . . . . . . . . . . . . . . . . . Slashing . | . . . . . . . . . . . . . . . . . . . . . . . . . . . . . Piercing . | . . . . . . . . . . . . . . . . . . . . . . . . . . . . . Highest Corruption 31 | . . . . . . . . . . . . . 2 2 . . 6 6 4 4 3 3 3 1 3 12 31 31 Average Corruption 3 | . . . . . . . . . . . . . 1 1 . . 4 4 1 2 2 3 3 1 2 5 9 31 Corruption Purged 11 | . . . . . . . . . . . . . . 2 . . . 2 4 2 1 . . . . . . . Effects 280 | . . . . . . . . . . . . . 6 8 . . 12 18 7 9 23 6 25 1 46 18 97 4 Message Errors 52 | . . . . . . . . . . . . . 2 3 . . 3 3 . 3 2 2 2 . 10 2 20 . Matter Fused 50 | . . . . . . . . . . . . . . . . . 1 4 3 1 8 1 5 . 13 2 11 1 Heat Flow Errors 30 | . . . . . . . . . . . . . . . . . . 2 . 2 6 1 4 . 7 1 7 . Energy Discharges 28 | . . . . . . . . . . . . . . 2 . . 1 2 2 1 3 1 3 . 6 1 6 . Parts Rejected 3 | . . . . . . . . . . . . . . . . . . . . . . . . . . 1 2 . Data Loss (minor) 26 | . . . . . . . . . . . . . . 2 . . 1 4 1 2 1 1 4 . 3 2 5 . Data Loss (major) 5 | . . . . . . . . . . . . . . . . . 1 1 . . . . . . . 1 2 . Misfires 5 | . . . . . . . . . . . . . . . . . 2 1 . . . . . . . . 2 . Misdirections 8 | . . . . . . . . . . . . . . . . . . . . . . . . . . 1 4 3 Targeting Errors 64 | . . . . . . . . . . . . . 3 1 . . 3 1 . . 3 . 7 1 6 7 32 . Weapon Failures 9 | . . . . . . . . . . . . . 1 . . . . . 1 . . . . . 1 . 6 . Overload Shots . | . . . . . . . . . . . . . . . . . . . . . . . . . . . . . Overflow Damage 418 | . . 5 . 8 . . . . . . . . 39 123 . . 15 18 . . . . 32 15 28 3 132 . Projectiles 79 | . . . . . . . . . . . . . . . . . . . . . . . . 15 28 3 33 . Explosions 339 | . . 5 . 8 . . . . . . . . 39 123 . . 15 18 . . . . 32 . . . 99 . Melee . | . . . . . . . . . . . . . . . . . . . . . . . . . . . . . Knockbacks 29 | . 2 8 . . . . . . . . . . . . . . . . . . . . . . 12 3 4 . Impact . | . . . . . . . . . . . . . . . . . . . . . . . . . . . . . Kinetic 28 | . 2 8 . . . . . . . . . . . . . . . . . . . . . . 11 3 4 . Secondary 1 | . . . . . . . . . . . . . . . . . . . . . . . . . 1 . . . Self-Inflicted Damage 552 | . . 9 . . . 44 . . . 23 . . 126 155 . . 92 . 5 . . . 74 13 . . 11 . Shots 15 | . . 1 . . . 2 . . . 2 . . 3 1 . . 2 . 1 . . . 1 1 . . 1 . Rammed 10 | . 1 . . 1 . 1 1 1 . . . . 3 . . . . . 1 . . . . . . . 1 . Targets Rammed 12 | . 1 . . 1 . 1 1 1 . . . . 3 . . . 1 . 2 . . . . . . . 1 . Kicked 1 | . . . . . . . . . . . . . . . . . . . 1 . . . . . . . . . Crushed 1 | . . . . . . . . . . . . . . . . . 1 . . . . . . . . . . . Highest Temperature 462 | 20 312 57 9 42 . 20 319 76 296 80 . 38 116 45 38 232 164 195 178 169 263 140 239 186 199 272 462 . Average Temperature 77 | 15 100 17 3 18 . 7 90 27 101 33 . 23 30 20 23 57 37 54 59 60 59 89 76 78 97 106 125 . Received Heat Transfer 3447 | . 318 97 . 45 . 99 90 . 202 72 . 78 164 18 . 303 174 144 90 36 207 . 528 66 176 79 443 18 Effects 7 | . 2 . . . . . . . . . . . . . . . . . . . . . . . . . 5 . Shutdowns 2 | . . . . . . . . . . . . . . . . . . . . . . . . . . . 2 . Interference 5 | . 2 . . . . . . . . . . . . . . . . . . . . . . . . . 3 . Siege Activations 11 | . . . . . . . . . . . . . . . . . . . 3 1 1 . . . 5 1 . . Total Turns 190 | . . . . . . . . . . . . . . . . . . . 21 20 2 . . . 122 25 . . Longest Duration 36 | . . . . . . . . . . . . . . . . . . . 9 20 2 . . . 36 25 . . Robots Corrupted 2 | . . . . . . . . . . . . . . . . . . . . . . . . . . . 2 . Combat Hostiles 2 | . . . . . . . . . . . . . . . . . . . . . . . . . . . 2 . Parts Fried 4 | . . . . . . . . . . . . . . . . . . . . . . . . . . . 4 . Impact Corruptions . | . . . . . . . . . . . . . . . . . . . . . . . . . . . . . Robots Melted 9 | . . . . . . . . . . . . . . . . . . . 1 . . . 1 1 2 3 1 . Combat Hostiles 8 | . . . . . . . . . . . . . . . . . . . 1 . . . 1 1 2 3 . . Parts Melted 57 | . 1 . . 1 . . . . . . . . . . . . . . 6 . . . 5 1 15 14 14 . Heat Transferred 16515 | 25 358 . . . . . . . . . . . . . . . . 650 1500 . . . 1677 792 4045 3065 4403 . Parts Sabotaged . | . . . . . . . . . . . . . . . . . . . . . . . . . . . . . Parts Stolen . | . . . . . . . . . . . . . . . . . . . . . . . . . . . . . Parts Stripped . | . . . . . . . . . . . . . . . . . . . . . . . . . . . . . Power Chain Reactions . | . . . . . . . . . . . . . . . . . . . . . . . . . . . . . Missiles Intercepted . | . . . . . . . . . . . . . . . . . . . . . . . . . . . . . Alert | -11 -10 -10 -9 -9 -9 -8 -8 -7 -7 -7 -7 -6 -6 -6 -6 -6 -5 -5 -5 -5 -5 -5 -4 -4 -4 -3 -2 -2 ------- Run | Scr Mat Min Mat Min Exi Min Mat Fac Low Low Dat Pro Fac Gar Fac Gar Fac Gar Fac Upp Upp Zhi Pro Fac Gar Res Res Gar Peak Influence 1170 | 5 209 50 15 179 . 247 293 98 . . . . 468 663 348 670 665 1013 1070 . . . . 250 603 505 1170 813 Initial 813 | . 3 . . 5 . . 96 64 . . . . 23 329 347 243 351 465 531 . . . . 58 31 339 233 813 Average 354 | 2 103 39 9 85 . 201 182 34 . . . . 159 493 347 453 459 763 754 . . . . 92 435 391 549 813 Maximum Alert Level 4 | . 1 . . . . 1 1 . . . . . 2 2 1 2 2 3 3 . . . . 1 2 2 4 3 Low Security (%) 35 | 100 95 100 100 100 . 28 53 100 . . . . 60 . . . . . . . . . . 89 5 . 7 . Level 1 22 | . 4 . . . . 71 46 . . . . . 35 18 100 43 41 . . . . . . 10 17 65 25 . Level 2 31 | . . . . . . . . . . . . . 4 81 . 56 58 41 36 . . . . . 76 34 43 . Level 3 9 | . . . . . . . . . . . . . . . . . . 58 63 . . . . . . . 18 100 Level 4 . | . . . . . . . . . . . . . . . . . . . . . . . . . . . 5 . Level 5 . | . . . . . . . . . . . . . . . . . . . . . . . . . . . . . High Security . | . . . . . . . . . . . . . . . . . . . . . . . . . . . . . Max Security . | . . . . . . . . . . . . . . . . . . . . . . . . . . . . . Squads Dispatched 51 | . 4 . . 1 . . . 2 . 1 . . 4 . . . 7 . 10 . . . 1 2 . 2 17 . Investigation 8 | . 3 . . 1 . . . . . . . . . . . . 1 . . . . . . . . 1 2 . Extermination 11 | . . . . . . . . 1 . . . . 2 . . . 2 . 1 . . . . 1 . 1 3 . Reinforcement 12 | . 1 . . . . . . 1 . . . . 1 . . . 2 . 2 . . . . 1 . . 4 . Assault 9 | . . . . . . . . . . 1 . . . . . . 2 . 3 . . . 1 . . . 2 . Garrison 11 | . . . . . . . . . . . . . 1 . . . . . 4 . . . . . . . 6 . Intercept . | . . . . . . . . . . . . . . . . . . . . . . . . . . . . . Construction Impeded 5 | . . . . . . . . . . . . . 1 . . . 2 . . . . . . 1 . . 1 . Haulers Reinforced 3 | . . . . . . . . . . . . . . . . . . . 1 . . . . . . . 2 . Stealth | -11 -10 -10 -9 -9 -9 -8 -8 -7 -7 -7 -7 -6 -6 -6 -6 -6 -5 -5 -5 -5 -5 -5 -4 -4 -4 -3 -2 -2 --------- Run | Scr Mat Min Mat Min Exi Min Mat Fac Low Low Dat Pro Fac Gar Fac Gar Fac Gar Fac Upp Upp Zhi Pro Fac Gar Res Res Gar Distress Signals 10 | . . . . . . . 2 . . . . . . . . . . . 1 . . . . 2 . 2 3 . Communications Jammed . | . . . . . . . . . . . . . . . . . . . . . . . . . . . . . Distress Signals . | . . . . . . . . . . . . . . . . . . . . . . . . . . . . . Times Spotted 463 | . 18 18 6 14 . 8 15 4 9 14 . 5 40 13 . 21 29 25 26 9 24 . 23 14 29 20 75 4 Peak Tracking Total 15 | . 3 6 6 4 . 4 5 1 4 8 . 3 6 4 . 7 7 4 9 5 5 . 8 4 7 4 15 4 Tactical Retreats 27 | . . 1 . 3 . . 2 . . . . . 4 1 . 2 3 . 1 . 4 . 1 . 2 1 2 . Traps | -11 -10 -10 -9 -9 -9 -8 -8 -7 -7 -7 -7 -6 -6 -6 -6 -6 -5 -5 -5 -5 -5 -5 -4 -4 -4 -3 -2 -2 ------- Run | Scr Mat Min Mat Min Exi Min Mat Fac Low Low Dat Pro Fac Gar Fac Gar Fac Gar Fac Upp Upp Zhi Pro Fac Gar Res Res Gar Traps Triggered 39 | . 3 . 2 . . . . 1 . . . . 2 1 . 6 2 3 1 . 1 . . 1 9 1 5 1 Indirectly . | . . . . . . . . . . . . . . . . . . . . . . . . . . . . . Trap Hack Attempts . | . . . . . . . . . . . . . . . . . . . . . . . . . . . . . Triggered . | . . . . . . . . . . . . . . . . . . . . . . . . . . . . . Disarmed . | . . . . . . . . . . . . . . . . . . . . . . . . . . . . . Reprogrammed . | . . . . . . . . . . . . . . . . . . . . . . . . . . . . . Reused . | . . . . . . . . . . . . . . . . . . . . . . . . . . . . . Traps Extracted . | . . . . . . . . . . . . . . . . . . . . . . . . . . . . . Installed . | . . . . . . . . . . . . . . . . . . . . . . . . . . . . . Triggered 4 | . . . . . . . . . . 1 . . . . . . . . . 3 . . . . . . . . Machines | -11 -10 -10 -9 -9 -9 -8 -8 -7 -7 -7 -7 -6 -6 -6 -6 -6 -5 -5 -5 -5 -5 -5 -4 -4 -4 -3 -2 -2 ---------- Run | Scr Mat Min Mat Min Exi Min Mat Fac Low Low Dat Pro Fac Gar Fac Gar Fac Gar Fac Upp Upp Zhi Pro Fac Gar Res Res Gar Machines Disabled 29 | . . . . 1 . . . . 1 1 . . 1 3 . 3 . 4 1 . . . 1 1 7 2 3 . Max in Single Turn 2 | . . . . 1 . . . . 1 . . . . 2 . 1 . 1 1 . . . 1 1 1 1 1 . Garrison Access 2 | . . . . . . . . . . . . . . . . . . . 1 . . . . . . . 1 . Garrison Relay 12 | . . . . . . . . . . . . . . 1 . 3 . 4 . . . . . . 4 . . . Phase Generator 1 | . . . . . . . . . . . . . . 1 . . . . . . . . . . . . . . Machines Sabotaged . | . . . . . . . . . . . . . . . . . . . . . . . . . . . . . Garrisons Compromised 1 | . . . . . . . . . . . . . 1 . . . . . . . . . . . . . . . Overloaded Fab Kills . | . . . . . . . . . . . . . . . . . . . . . . . . . . . . . Fab Network Shutdowns . | . . . . . . . . . . . . . . . . . . . . . . . . . . . . . Hacking | -11 -10 -10 -9 -9 -9 -8 -8 -7 -7 -7 -7 -6 -6 -6 -6 -6 -5 -5 -5 -5 -5 -5 -4 -4 -4 -3 -2 -2 --------- Run | Scr Mat Min Mat Min Exi Min Mat Fac Low Low Dat Pro Fac Gar Fac Gar Fac Gar Fac Upp Upp Zhi Pro Fac Gar Res Res Gar Machines Accessed 59 | . 6 . 1 1 2 1 3 1 . . 4 . 5 . 3 . 3 . 3 1 . 7 . 4 . 6 8 . Terminals 29 | . 6 . 1 . . 1 3 . . . . . 3 . 2 . 1 . 2 . . . . 2 . 3 5 . Fabricators 9 | . . . . . . . . 1 . . . . 1 . . . 1 . 1 . . . . 1 . 3 1 . Repair Stations . | . . . . . . . . . . . . . . . . . . . . . . . . . . . . . Recycling Units . | . . . . . . . . . . . . . . . . . . . . . . . . . . . . . Scanalyzers . | . . . . . . . . . . . . . . . . . . . . . . . . . . . . . Garrison Access 6 | . . . . . . . . . . . . . 1 . 1 . 1 . . . . . . 1 . . 2 . Total Hacks 142 | . 16 . 3 1 2 5 11 4 . . 23 . 6 . 6 . 6 . 6 1 . 20 . 6 . 11 15 . Successful 92 | . 9 . 1 1 2 1 6 3 . . 23 . 3 . 2 . 2 . 4 1 . 20 . 2 . 4 8 . Failed 49 | . 7 . 2 . . 4 4 1 . . . . 3 . 4 . 4 . 2 . . . . 4 . 7 7 . Catastrophic 12 | . 1 . . . . . . . . . . . 3 . . . . . 1 . . . . 1 . 2 4 . Database Lockouts 1 | . . . . . . . 1 . . . . . . . . . . . . . . . . . . . . . Manual 63 | . 12 . 3 . 1 4 9 2 . . . . 3 . 5 . 4 . 3 . . . . 4 . 3 10 . Terminals 71 | . 16 . 3 . . 5 11 . . . . . 4 . 5 . 4 . 3 . . . . 4 . 4 12 . Fabricators 18 | . . . . . . . . 4 . . . . 1 . . . 1 . 3 . . . . 1 . 7 1 . Repair Stations . | . . . . . . . . . . . . . . . . . . . . . . . . . . . . . Recycling Units . | . . . . . . . . . . . . . . . . . . . . . . . . . . . . . Scanalyzers . | . . . . . . . . . . . . . . . . . . . . . . . . . . . . . Garrison Access 6 | . . . . . . . . . . . . . 1 . 1 . 1 . . . . . . 1 . . 2 . Terminal Hacks 71 | . 8 . 1 1 2 1 5 . . . 23 . 1 . . . . . 2 1 . 20 . 1 . 1 4 . Record 20 | . . . . . 1 . . . . . 11 . . . . . . . . . . 8 . . . . . . Part Schematic 11 | . 1 . . . . . 1 . . . 5 . . . . . . . . . . 4 . . . . . . Robot Schematic 5 | . 1 . . . . . . . . . 4 . . . . . . . . . . . . . . . . . Robot Analysis 10 | . 2 . . . . . 2 . . . . . . . . . . . 1 . . 4 . 1 . . . . Prototype ID Bank 10 | . 3 . . . . . . . . . 3 . . . . . . . . . . 4 . . . . . . Open Door 3 | . . . . 1 . . . . . . . . 1 . . . . . . 1 . . . . . . . . Branch Access Points 4 | . . . 1 . . . . . . . . . . . . . . . 1 . . . . . . 1 1 . Alert Level 1 | . . . . . . . 1 . . . . . . . . . . . . . . . . . . . . . Unreport Threat 1 | . . . . . . . . . . . . . . . . . . . . . . . . . . . 1 . Locate Traps 2 | . 1 . . . . . . . . . . . . . . . . . . . . . . . . . 1 . Zone Layout 3 | . . . . . . 1 1 . . . . . . . . . . . . . . . . . . . 1 . EX-Prototype ID Bank 1 | . . . . . 1 . . . . . . . . . . . . . . . . . . . . . . . Fabricator Hacks 7 | . . . . . . . . 2 . . . . . . . . . . 2 . . . . . . 3 . . Load Schematic 4 | . . . . . . . . 1 . . . . . . . . . . 1 . . . . . . 2 . . Build 3 | . . . . . . . . 1 . . . . . . . . . . 1 . . . . . . 1 . . Repair Station Hacks . | . . . . . . . . . . . . . . . . . . . . . . . . . . . . . Recycling Unit Hacks . | . . . . . . . . . . . . . . . . . . . . . . . . . . . . . Scanalyzer . | . . . . . . . . . . . . . . . . . . . . . . . . . . . . . Garrison Access Hacks 6 | . . . . . . . . . . . . . 1 . 1 . 1 . . . . . . 1 . . 2 . Unlock Access 5 | . . . . . . . . . . . . . 1 . 1 . 1 . . . . . . 1 . . 1 . Seal Access 1 | . . . . . . . . . . . . . . . . . . . . . . . . . . . 1 . Unauthorized Hacks 8 | . 1 . . . . . 1 1 . . . . 1 . 1 . 1 . . . . . . . . . 2 . Terminals 7 | . 1 . . . . . 1 . . . . . 1 . 1 . 1 . . . . . . . . . 2 . Botnet 7 | . 1 . . . . . 1 . . . . . 1 . 1 . 1 . . . . . . . . . 2 . Fabricators 1 | . . . . . . . . 1 . . . . . . . . . . . . . . . . . . . . Prioritize 1 | . . . . . . . . 1 . . . . . . . . . . . . . . . . . . . . Repair Stations . | . . . . . . . . . . . . . . . . . . . . . . . . . . . . . Recycling Units . | . . . . . . . . . . . . . . . . . . . . . . . . . . . . . Scanalyzers . | . . . . . . . . . . . . . . . . . . . . . . . . . . . . . Garrison Access . | . . . . . . . . . . . . . . . . . . . . . . . . . . . . . Data Cores Recovered 1 | . . . . . . . . . . . . . . . . . . . . . . . . . . 1 . . Used . | . . . . . . . . . . . . . . . . . . . . . . . . . . . . . Hacking Detections 36 | . 6 . 1 . . 1 3 . . . . . 3 . 3 . 2 . 3 . . . . 3 . 5 6 . Full Trace Events 1 | . . . . . . . . . . . . . . . . . . . . . . . . . . 1 . . Feedback Events . | . . . . . . . . . . . . . . . . . . . . . . . . . . . . . Feedback Blocked . | . . . . . . . . . . . . . . . . . . . . . . . . . . . . . Robot Schematics Acquired 5 | . 1 . . . . . . . . . 4 . . . . . . . . . . . . . . . . . Robots Built 2 | . . . . . . . . . . . . . . . . . . . 2 . . . . . . . . . Matter 318 | . . . . . . . . . . . . . . . . . . . 318 . . . . . . . . . Time 84 | . . . . . . . . . . . . . . . . . . . 84 . . . . . . . . . Total Robot Build Rating 12 | . . . . . . . . . . . . . . . . . . . 12 . . . . . . . . . Part Schematics Acquired 11 | . 1 . . . . . 1 . . . 5 . . . . . . . . . . 4 . . . . . . Parts Built 2 | . . . . . . . . 1 . . . . . . . . . . . . . . . . . 1 . . Matter 248 | . . . . . . . . 146 . . . . . . . . . . . . . . . . . 102 . . Time 90 | . . . . . . . . 73 . . . . . . . . . . . . . . . . . 17 . . Total Part Build Rating 4 | . . . . . . . . 3 . . . . . . . . . . . . . . . . . 1 . . Parts Repaired . | . . . . . . . . . . . . . . . . . . . . . . . . . . . . . Time . | . . . . . . . . . . . . . . . . . . . . . . . . . . . . . Parts Recycled . | . . . . . . . . . . . . . . . . . . . . . . . . . . . . . Recycled Matter . | . . . . . . . . . . . . . . . . . . . . . . . . . . . . . Retrieved Matter . | . . . . . . . . . . . . . . . . . . . . . . . . . . . . . Retrieved Components . | . . . . . . . . . . . . . . . . . . . . . . . . . . . . . Parts Scanalyzed . | . . . . . . . . . . . . . . . . . . . . . . . . . . . . . Part Schematics Acquired . | . . . . . . . . . . . . . . . . . . . . . . . . . . . . . Parts Damaged . | . . . . . . . . . . . . . . . . . . . . . . . . . . . . . Bothacking | -11 -10 -10 -9 -9 -9 -8 -8 -7 -7 -7 -7 -6 -6 -6 -6 -6 -5 -5 -5 -5 -5 -5 -4 -4 -4 -3 -2 -2 ------------ Run | Scr Mat Min Mat Min Exi Min Mat Fac Low Low Dat Pro Fac Gar Fac Gar Fac Gar Fac Upp Upp Zhi Pro Fac Gar Res Res Gar Used RIF Installer 5 | . . . . . . . . . . . . . . 1 . 1 . 1 . . . . . . 1 . . 1 Signal Jammer 1 | . . . . . . . . . . . . . . . . . . . . . . . . . . . . 1 Zone Cloak 2 | . . . . . . . . . . . . . . . . . . 1 . . . . . . 1 . . . Patrol Navigation 1 | . . . . . . . . . . . . . . . . 1 . . . . . . . . . . . . Robots Hacked 27 | . . . . . . . . . . . . . . . . 4 . 7 2 1 2 . . 1 7 1 2 . Non-combat . | . . . . . . . . . . . . . . . . . . . . . . . . . . . . . Combat 27 | . . . . . . . . . . . . . . . . 4 . 7 2 1 2 . . 1 7 1 2 . Robot Hacks Applied 27 | . . . . . . . . . . . . . . . . 4 . 7 2 1 2 . . 1 7 1 2 . scatter_targeting 1 | . . . . . . . . . . . . . . . . . . 1 . . . . . . . . . . amplify_resonance 3 | . . . . . . . . . . . . . . . . 1 . 2 . . . . . . . . . . disable_weapons 1 | . . . . . . . . . . . . . . . . 1 . . . . . . . . . . . . overwrite_iff 2 | . . . . . . . . . . . . . . . . . . . . . . . . . 2 . . . formatsys_high 20 | . . . . . . . . . . . . . . . . 2 . 4 2 1 2 . . 1 5 1 2 . Relay Couplers Released 54 | . . . . . . . . . . . . . 4 3 . 13 . 14 3 . . . . . 17 . . . Machine Destruction 50 | . . . . . . . . . . . . . . 3 . 13 . 14 3 . . . . . 17 . . . Programmers 4 | . . . . . . . . . . . . . 4 . . . . . . . . . . . . . . . Attached 19 | . . . . . . . . . . . . . . . . 2 1 5 2 1 2 . . . 4 1 1 . Robots Rewired 7 | . . . . . . . . . 3 2 . . . . . . . . . . . . 2 . . . . . Allies Hacked 1 | . . . . . . . . . . . . . . . . . . . . . . . . . . . 1 . Hacks Repelled . | . . . . . . . . . . . . . . . . . . . . . . . . . . . . . Allies | -11 -10 -10 -9 -9 -9 -8 -8 -7 -7 -7 -7 -6 -6 -6 -6 -6 -5 -5 -5 -5 -5 -5 -4 -4 -4 -3 -2 -2 -------- Run | Scr Mat Min Mat Min Exi Min Mat Fac Low Low Dat Pro Fac Gar Fac Gar Fac Gar Fac Upp Upp Zhi Pro Fac Gar Res Res Gar Total Allies 34 | . . . . 2 . . . . 3 2 . 1 . . . 2 . 4 4 1 2 . 2 1 7 1 2 . Largest Group 4 | . . . . 2 . . . . 3 4 . 1 1 . . 1 . 2 3 2 1 1 2 1 3 2 2 . Highest-Rated Group 154 | . . . . 46 . . . . 93 93 . 94 94 . . 32 . 90 121 113 81 43 97 49 154 94 122 . Highest-Rated Ally 94 | . . . . 31 . . . . 31 31 . 94 94 . . 32 . 49 49 64 81 43 49 49 56 64 64 . Total Orders 6 | . . . . . . . . . . . . . . . . . . 2 . . . . . . 4 . . . STAY 3 | . . . . . . . . . . . . . . . . . . 1 . . . . . . 2 . . . FOLLOW 3 | . . . . . . . . . . . . . . . . . . 1 . . . . . . 2 . . . Ally Attacks 303 | . . . . 6 . . . . . 44 . 15 28 . . 8 . 27 52 21 44 . 17 3 18 11 9 . Total Damage 8091 | . . . . 65 . . . . . 639 . 619 903 . . 241 . 847 1291 813 899 . 489 94 372 626 193 . Kills 58 | . . . . 1 . . . . . 5 . 6 7 . . . . 8 14 4 9 . 1 . . 1 2 . Allies Corrupted 1 | . . . . . . . . . . . . . . . . . . . . . . . . . . . 1 . Allies Melted . | . . . . . . . . . . . . . . . . . . . . . . . . . . . . . Intel | -11 -10 -10 -9 -9 -9 -8 -8 -7 -7 -7 -7 -6 -6 -6 -6 -6 -5 -5 -5 -5 -5 -5 -4 -4 -4 -3 -2 -2 ------- Run | Scr Mat Min Mat Min Exi Min Mat Fac Low Low Dat Pro Fac Gar Fac Gar Fac Gar Fac Upp Upp Zhi Pro Fac Gar Res Res Gar Robot Analysis Total 10 | . 2 . . . . . 2 . . . . . . . . . . . 1 . . 4 . 1 . . . . Derelict Logs Recovered 9 | . . 1 . 1 . . . . . 1 . 3 . . . . . . . 1 1 . 1 . . . . . Drone Launches . | . . . . . . . . . . . . . . . . . . . . . . . . . . . . . Drone Recoveries . | . . . . . . . . . . . . . . . . . . . . . . . . . . . . . Exploration | -11 -10 -10 -9 -9 -9 -8 -8 -7 -7 -7 -7 -6 -6 -6 -6 -6 -5 -5 -5 -5 -5 -5 -4 -4 -4 -3 -2 -2 ------------- Run | Scr Mat Min Mat Min Exi Min Mat Fac Low Low Dat Pro Fac Gar Fac Gar Fac Gar Fac Upp Upp Zhi Pro Fac Gar Res Res Gar Turns Passed 21918 | 11 817 426 308 780 336 191 851 838 743 729 107 1066 1192 446 118 924 732 1016 888 780 1466 327 840 979 2118 890 1976 23 Spaces Moved 11528 | 3 543 245 183 379 210 95 361 449 456 471 77 752 610 249 79 415 283 550 420 443 751 158 444 506 869 476 1016 35 Core 71 | . . . . . . . . . . . . . . . . . . . . . . . . . . . 36 35 Treads 3536 | . 96 98 29 2 . 2 51 32 15 . . . 27 5 . 192 261 . 229 443 751 111 . 201 869 24 98 . Legs 1825 | 3 88 . . . . . . . . . . . . . . . 22 550 191 . . 47 444 305 . 175 . . Wheels 6096 | . 359 147 154 377 210 93 310 417 441 471 77 752 583 244 79 223 . . . . . . . . . 277 882 . Hover . | . . . . . . . . . . . . . . . . . . . . . . . . . . . . . Flight . | . . . . . . . . . . . . . . . . . . . . . . . . . . . . . Fastest Speed 50 | 120 90 110 110 160 160 160 170 130 130 140 140 140 140 140 140 140 150 150 150 160 160 150 150 150 175 120 50 50 Average Speed 152 | 120 112 137 149 160 160 160 171 147 137 140 140 140 141 140 140 157 177 150 155 161 176 189 150 163 193 138 131 50 Slowest Speed 280 | 120 160 180 240 180 160 200 180 220 200 140 140 140 180 180 140 177 200 150 180 180 205 210 150 184 240 195 280 50 Overloaded Moves . | . . . . . . . . . . . . . . . . . . . . . . . . . . . . . Propulsion Burnouts . | . . . . . . . . . . . . . . . . . . . . . . . . . . . . . Robots Hopped . | . . . . . . . . . . . . . . . . . . . . . . . . . . . . . Cave-ins Triggered . | . . . . . . . . . . . . . . . . . . . . . . . . . . . . . Teleports 1 | . . . . . . . . . . . . . . . . . . . . . . . . . . . 1 . Exploration Rate (%) 46 | 2 87 47 20 88 61 29 41 13 70 59 68 91 21 49 3 60 8 84 14 60 85 62 76 18 91 13 26 13 Regions Visited 28 Branch Regions 12 Pre-discovered Areas 8 | . . . . 1 1 . . . . . 1 2 . . . . . . . . . 3 . . . . . . Known Exits Taken 8 | . . . 1 . . . . . . . . . 1 . 1 . 1 . 1 . . . 1 1 . . 1 . Unknown Exits Taken 16 | 1 1 1 . 1 1 1 1 1 1 1 1 1 . . . . . . . 1 1 1 . . . 1 . . Scrap Searched 16 | . . 1 . 2 . 1 . . . 3 . 2 . . . . . . . 5 2 . . . . . . . Spaces Dug 77 | . . . . . . . . 2 2 . . . 3 . 1 . 15 . . . . . . 19 7 3 25 . Terrain Destroyed 750 | . 13 61 . 20 . 54 6 2 4 26 . 9 59 81 1 . 40 52 12 . . . 41 72 14 17 166 . Melee 18 | . . . . . . . . 2 2 . . . 1 . . . . . . . . . . . . . 13 . Projectile 124 | . 1 . . 1 . . 6 . . . . . 2 . 1 . 15 . . . . . 17 9 14 17 41 . AOE 608 | . 12 61 . 19 . 54 . . 2 26 . 9 56 81 . . 25 52 12 . . . 24 63 . . 112 . Terrain Rammed . | . . . . . . . . . . . . . . . . . . . . . . . . . . . . . Walls Destroyed . | . . . . . . . . . . . . . . . . . . . . . . . . . . . . . Machines Disabled . | . . . . . . . . . . . . . . . . . . . . . . . . . . . . . Actions | -11 -10 -10 -9 -9 -9 -8 -8 -7 -7 -7 -7 -6 -6 -6 -6 -6 -5 -5 -5 -5 -5 -5 -4 -4 -4 -3 -2 -2 --------- Run | Scr Mat Min Mat Min Exi Min Mat Fac Low Low Dat Pro Fac Gar Fac Gar Fac Gar Fac Upp Upp Zhi Pro Fac Gar Res Res Gar Total 14253 | 5 667 290 206 514 211 113 541 608 537 511 76 760 809 311 84 575 405 672 566 481 817 188 521 612 1139 610 1384 40 Wait 845 | . 29 5 1 90 . 1 116 102 18 1 . 1 95 19 . 31 27 15 45 5 12 7 7 9 95 27 87 . Move 11504 | 2 542 244 182 378 209 94 360 448 455 470 76 751 610 248 79 414 283 549 419 442 750 157 443 506 867 475 1016 35 Hop . | . . . . . . . . . . . . . . . . . . . . . . . . . . . . . Pick Up 185 | . 12 3 8 4 1 1 9 13 1 6 . 1 10 4 . 17 6 12 10 7 5 1 2 10 16 12 14 . Fast Attach 97 | . 2 1 5 3 . . 2 5 . 2 . . 1 . . . 2 1 9 . 2 8 . 14 8 8 24 . Attach 141 | . 2 1 1 . . 1 3 2 . 2 . . 7 3 1 7 10 4 4 3 8 3 14 14 11 6 34 . Detach 57 | . . . 1 2 . . 1 1 . 2 . . . . 1 . . 1 4 . . 5 4 19 2 3 11 . Swap 221 | . 17 8 2 8 . 4 10 4 10 7 . 3 9 5 2 8 14 20 13 10 7 . 3 3 19 13 22 . Drop 177 | . 16 4 1 7 1 . 9 18 . 1 . 1 6 2 . 6 2 5 16 2 . 7 . 7 5 21 40 . Fire 890 | 3 46 24 5 21 . 11 30 8 18 18 . 3 67 20 1 78 58 49 44 12 33 . 48 30 96 45 122 . Melee 24 | . . . . . . . . 4 3 . . . 1 2 . . . . . . . . . . 1 . 13 . Ram . | . . . . . . . . . . . . . . . . . . . . . . . . . . . . . Kick 1 | . . . . . . . . . . . . . . . . . . . 1 . . . . . . . . . Crush 11 | . 1 . . 1 . 1 1 1 . . . . 3 . . . 1 . 1 . . . . . . . 1 . Escape Stasis 64 | . . . . . . . . 2 . . . . . 8 . 14 2 15 . . . . . . 18 . . 5 Rewire 36 | . . . . . . . . . 32 2 . . . . . . . 1 . . . . . . 1 . . . Trap . | . . . . . . . . . . . . . . . . . . . . . . . . . . . . . Miscellaneous . | . . . . . . . . . . . . . . . . . . . . . . . . . . . . . Route ------- -11/Scrapyard -10/Materials (discovered 3 exits: *Mat x2 / [*Min]) -10/Mines -9/Materials -9/Mines (discovered 2 exits: *Mat / *Exi) -9/Exiles -8/Mines -8/Materials -7/Factory (discovered 2 exits: Sto / [*Low]) -7/Lower Caves -7/Lower Caves (discovered 2 exits: *Fac / *Dat) -7/Data Miner -6/Proximity Caves -6/Factory (discovered 2 exits: [*Ext] / Gar) -6/Garrison -6/Factory -6/Garrison (discovered 2 exits: *Fac x2) -5/Factory -5/Garrison (discovered 3 exits: *Fac x3) -5/Factory (discovered 2 exits: *Upp x2) -5/Upper Caves -5/Upper Caves -5/Zhirov -4/Proximity Caves -4/Factory -4/Garrison (discovered 3 exits: *Res x3) -3/Research (discovered 3 exits: *Res / Tes x2) -2/Research (discovered 3 exits: *Qua x2 / Gar) -2/Garrison History --------- Turn | Location | Event 10 | -11/Scrapyard | Discovered new exit (range 3) 12 | -11/Scrapyard | Entered Materials 165 | -10/Materials | Discovered new exit (range 7) 242 | -10/Materials | Discovered new exit (range 6) 302 | -10/Materials | Build established: Mutant 566 | -10/Materials | Discovered new exit (range 11) 829 | -10/Materials | Entered Mines 830 | -10/Mines | Assembled infested the area 835 | -10/Mines | Assisted by a Guerilla fighting off Assembled 856 | -10/Mines | Core integrity fell below 50% 932 | -10/Mines | Found a hidden stash of uninstalled traps 1198 | -10/Mines | Discovered new exit (range 6) 1255 | -10/Mines | Entered Materials 1255 | -9/Materials | Evolved 2 slots: Propulsion x1, Utility x1 1280 | -9/Materials | Identified exit to Mines 1563 | -9/Materials | Entered Mines 1662 | -9/Mines | Build established: Hauler-Mutant 1720 | -9/Mines | Discovered new exit (range 8) 1968 | -9/Mines | Met a Derelict shopkeep closing up shop 2296 | -9/Mines | A weapon hastily lodged in a ceiling crevice suddenly fell to the ground 2337 | -9/Mines | Deemed a non-threat by the Exiles lab entrance 2337 | -9/Mines | Discovered new exit (range 5) 2343 | -9/Mines | Entered Exiles 2387 | -9/Exiles | Met 8R-AWN 2409 | -9/Exiles | Met EX-HEX 2452 | -9/Exiles | Met EX-BIN 2475 | -9/Exiles | Aligned with FarCom system 2476 | -9/Exiles | Given EX-Vault access code 2513 | -9/Exiles | Opened EX-Vault 2525 | -9/Exiles | Found Cloak of Protection 2561 | -9/Exiles | Warned to stay clear of 0b10 Research branches 2601 | -9/Exiles | Met EX-DEC 2612 | -9/Exiles | Learned location of Zion (-6) 2667 | -9/Exiles | Discovered new exit (range 10) 2679 | -9/Exiles | Left Exiles lab with Cloak of Protection 2679 | -9/Exiles | Entered Mines 2759 | -8/Mines | Discovered new exit (range 10) 2870 | -8/Mines | Entered Materials 2870 | -8/Materials | Evolved 2 slots: Utility x1, Weapon x1 3309 | -8/Materials | Discovered new exit (range 16) 3309 | -8/Materials | Central database locked down 3355 | -8/Materials | Build established: Hauler-Tank 3721 | -8/Materials | Entered Factory 3721 | -7/Factory | Evolved 2 slots: Propulsion x1, Utility x1 3722 | -7/Factory | Identified exit to Storage 4009 | -7/Factory | Build established: Hauler-Skirmisher 4387 | -7/Factory | Discovered new exit (range 7) 4511 | -7/Factory | Fabricated Hvy. Armor Plating (x1) 4559 | -7/Factory | Entered Lower Caves 4585 | -7/Lower Caves | Encountered a Warlord checkpoint 4876 | -7/Lower Caves | Found Alien Artifact 4922 | -7/Lower Caves | Build established: Hauler-Tank 5188 | -7/Lower Caves | Discovered new exit (range 9) 5238 | -7/Lower Caves | Attacked by a delusional Derelict stockpiling Unaware 5302 | -7/Lower Caves | Entered another Lower Caves area 5302 | -7/Lower Caves | Accompanied by 3 allies 5302 | -7/Lower Caves | Discovered new exit (range 14) 5730 | -7/Lower Caves | Attracted the attention of an 0b10 outpost 5936 | -7/Lower Caves | Learned Factory terminal intel 5981 | -7/Lower Caves | Discovered new exit (range 5) 5989 | -7/Lower Caves | Encountered a Warlord checkpoint 6031 | -7/Lower Caves | Entered Data Miner 6031 | -7/Data Miner | Discovered new exit (range 6) 6058 | -7/Data Miner | Met Data Miner 6083 | -7/Data Miner | Learned location of Section 7 (-2) 6083 | -7/Data Miner | Acquired the access code to Warlord's prototype stash 6108 | -7/Data Miner | Received God Mode back door access code from Data Miner 6138 | -7/Data Miner | Entered Proximity Caves 6197 | -6/Proximity Caves | Learned location of Extension (-6) 6246 | -6/Proximity Caves | Escorted by Enhanced Grunt 6850 | -6/Proximity Caves | Attracted the attention of an 0b10 checkpoint 6963 | -6/Proximity Caves | Spotted B-75 Beast 7164 | -6/Proximity Caves | Learned Factory interactive machine intel 7171 | -6/Proximity Caves | Discovered new exit (range 10) 7204 | -6/Proximity Caves | Entered Factory 7204 | -6/Factory | Accompanied by 1 ally 7204 | -6/Factory | Evolved 2 slots: Utility x2 7205 | -6/Factory | Loaded intel: 48 interactive machine locations 7206 | -6/Factory | Loaded intel: 22 terminal locations 7267 | -6/Factory | Identified Core Expander 7267 | -6/Factory | Installed Core Expander, added new Propulsion slot 7414 | -6/Factory | Discovered new exit (range 6) 7512 | -6/Factory | Build established: Hauler-Skirmisher 7970 | -6/Factory | Destroyed 7 combat bots 8305 | -6/Factory | Garrison activated, responded to threat 8396 | -6/Factory | Identified exit to Garrison 8396 | -6/Factory | Entered Garrison 8405 | -6/Garrison | Installed Relay Interface Framework 8471 | -6/Garrison | Triggered checkpoint 8548 | -6/Garrison | Triggered checkpoint 8573 | -6/Garrison | Triggered checkpoint 8654 | -6/Garrison | Garrison Relay disabled 8782 | -6/Garrison | Phase Generator disabled 8782 | -6/Garrison | Discovered new exit (range 11) 8842 | -6/Garrison | Entered Factory 8958 | -6/Factory | Identified exit to Garrison 8960 | -6/Factory | Entered Garrison 9052 | -6/Garrison | Triggered checkpoint 9075 | -6/Garrison | Build established: Bothacker-Skirmisher 9113 | -6/Garrison | Garrison Relay disabled 9178 | -6/Garrison | Triggered checkpoint 9218 | -6/Garrison | Triggered checkpoint 9260 | -6/Garrison | Discovered new exit (range 12) 9326 | -6/Garrison | Triggered checkpoint 9333 | -6/Garrison | Lost 3 parts (2n1u) 9419 | -6/Garrison | Garrison Relay disabled 9538 | -6/Garrison | Triggered checkpoint 9573 | -6/Garrison | Triggered checkpoint 9656 | -6/Garrison | Triggered checkpoint 9691 | -6/Garrison | Garrison Relay disabled 9842 | -6/Garrison | Discovered new exit (range 12) 9872 | -6/Garrison | Expanded RIF knowledge: Watcher Feeds 9884 | -6/Garrison | Entered Factory 9884 | -5/Factory | Evolved 2 slots: Utility x2 10184 | -5/Factory | First assault squad dispatched 10207 | -5/Factory | Incoming assault squad redirected 10522 | -5/Factory | Lost 3 parts (2n1u) 10616 | -5/Factory | Identified exit to Garrison 10616 | -5/Factory | Entered Garrison 10701 | -5/Garrison | Triggered checkpoint 10809 | -5/Garrison | Garrison Relay disabled 10924 | -5/Garrison | Triggered checkpoint 11017 | -5/Garrison | Triggered checkpoint 11041 | -5/Garrison | Garrison Relay disabled 11085 | -5/Garrison | Discovered new exit (range 12) 11152 | -5/Garrison | Triggered checkpoint 11212 | -5/Garrison | Triggered checkpoint 11246 | -5/Garrison | Garrison Relay disabled 11287 | -5/Garrison | Discovered new exit (range 15) 11363 | -5/Garrison | Triggered checkpoint 11471 | -5/Garrison | Discovered new exit (range 14) 11499 | -5/Garrison | Expanded RIF knowledge: Zone Cloak 11540 | -5/Garrison | Triggered checkpoint 11569 | -5/Garrison | Garrison Relay disabled 11632 | -5/Garrison | Entered Factory 11632 | -5/Factory | Accompanied by 2 allies 11819 | -5/Factory | Garrison activated, responded to threat 12180 | -5/Factory | Identified exit to Upper Caves 12232 | -5/Factory | Fabricated X-72 Disruptor? 12232 | -5/Factory | First assault squad dispatched 12237 | -5/Factory | Garrison activated, responded to threat 12262 | -5/Factory | Incoming assault squad redirected 12370 | -5/Factory | Lost 3 parts (1n2u) 12520 | -5/Factory | Entered Upper Caves 12520 | -5/Upper Caves | Accompanied by 1 ally 12564 | -5/Upper Caves | Attracted the attention of an 0b10 outpost 12822 | -5/Upper Caves | Build established: Bothacker-Gunner 13156 | -5/Upper Caves | Learned Factory interactive machine intel 13241 | -5/Upper Caves | Discovered new exit (range 15) 13300 | -5/Upper Caves | Entered another Upper Caves area 13300 | -5/Upper Caves | Accompanied by 1 ally 13373 | -5/Upper Caves | Encountered a Warlord checkpoint 13426 | -5/Upper Caves | Learned Factory stockpile data 13700 | -5/Upper Caves | Spotted B-75 Beast 13713 | -5/Upper Caves | Assimilated Beast 6a with formatsys_high 13902 | -5/Upper Caves | Lost 3 parts (2n1u) 14079 | -5/Upper Caves | Attracted the attention of an 0b10 checkpoint 14102 | -5/Upper Caves | Core integrity fell below 50% 14478 | -5/Upper Caves | Discovered new exit (range 9) 14766 | -5/Upper Caves | Entered Zhirov 14766 | -5/Zhirov | Accompanied by 1 ally 14768 | -5/Zhirov | Discovered new exit (range 3) 14805 | -5/Zhirov | Met Zhirov 14842 | -5/Zhirov | Learned location of Quarantine (-2) 14842 | -5/Zhirov | Learned location of Testing (-3) 14842 | -5/Zhirov | Learned location of Command (-1) 14883 | -5/Zhirov | Zhirov requested help retrieving the SGEMP Prototype 14924 | -5/Zhirov | Found Alien Artifact 14954 | -5/Zhirov | Found Alien Artifact 14954 | -5/Zhirov | Identified Integrated Dissipator 14954 | -5/Zhirov | Installed Integrated Dissipator, increased core heat dissipation (+20) 15065 | -5/Zhirov | Build established: Bothacker-Mutant 15093 | -5/Zhirov | Entered Proximity Caves 15093 | -4/Proximity Caves | Accompanied by 1 ally 15317 | -4/Proximity Caves | Identified exit to Factory 15391 | -4/Proximity Caves | Build established: Bothacker-Gunner 15666 | -4/Proximity Caves | Lost 5 parts (1n1u3w) 15729 | -4/Proximity Caves | Attracted the attention of an 0b10 outpost 15737 | -4/Proximity Caves | Core integrity fell below 20% 15827 | -4/Proximity Caves | Lost 7 parts (1n2u4w) 15933 | -4/Proximity Caves | Entered Factory 15933 | -4/Factory | Evolved 2 slots: Power x1, Weapon x1 15935 | -4/Factory | Loaded intel: 45 interactive machine locations 16026 | -4/Factory | Build established: Hauler-Gunner 16479 | -4/Factory | Found Prototype Device 16479 | -4/Factory | Identified EM Disruption Field 16912 | -4/Factory | Identified exit to Garrison 16912 | -4/Factory | Entered Garrison 16918 | -4/Garrison | Triggered checkpoint 17008 | -4/Garrison | Triggered checkpoint 17036 | -4/Garrison | Garrison Relay disabled 17133 | -4/Garrison | Spotted B-86 Titan 17152 | -4/Garrison | Destroyed B-86 Titan 17182 | -4/Garrison | Triggered checkpoint 17206 | -4/Garrison | Triggered checkpoint 17219 | -4/Garrison | Triggered checkpoint 17334 | -4/Garrison | Lost 14 parts (2p3n2u7w) 17390 | -4/Garrison | Triggered checkpoint 17649 | -4/Garrison | Build established: Scavenger-Gunner 17718 | -4/Garrison | Discovered new exit (range 12) 17751 | -4/Garrison | Expanded RIF knowledge: Zone Cloak 18076 | -4/Garrison | Triggered checkpoint 18143 | -4/Garrison | Garrison Relay disabled 18374 | -4/Garrison | Garrison Relay disabled 18439 | -4/Garrison | Discovered new exit (range 10) 18589 | -4/Garrison | Discovered new exit (range 8) 18651 | -4/Garrison | Build established: Scavenger-Mutant 18676 | -4/Garrison | Triggered checkpoint 18706 | -4/Garrison | Garrison Relay disabled 19030 | -4/Garrison | Entered Research 19030 | -3/Research | Accompanied by 2 allies 19030 | -3/Research | Evolved 2 slots: Propulsion x1, Utility x1 19436 | -3/Research | Fabricated Hcp. Storage Unit (x1) 19471 | -3/Research | Discovered new exit (range 12) 19524 | -3/Research | Build established: Scavenger-Gunner 19531 | -3/Research | Found Prototype Device 19531 | -3/Research | Identified Exp. Shield Generator 19668 | -3/Research | Identified exit to Testing 19795 | -3/Research | System corruption reached 10% 19920 | -3/Research | Entered another Research area 19920 | -2/Research | Evolved 2 slots: Utility x2 19942 | -2/Research | Identified exit to Quarantine 20053 | -2/Research | Build established: Hauler-Gunner 20189 | -2/Research | Garrison activated, responded to threat 20779 | -2/Research | Identified Transdimensional Reconstructor 20779 | -2/Research | Warped through subspace 20858 | -2/Research | Build established: Hauler-Tank 21147 | -2/Research | System corruption reached 10% 21390 | -2/Research | Found Prototype Reactor 21390 | -2/Research | Identified Vortex Chain Reactor 21394 | -2/Research | Found Vortex Chain Reactor 21420 | -2/Research | First assault squad dispatched 21674 | -2/Research | Incoming investigation squad redirected 21682 | -2/Research | Lost 5 parts (1n2u2w) 21734 | -2/Research | Incoming assault squad redirected 21862 | -2/Research | Core integrity fell below 50% 21881 | -2/Research | System corruption reached 30% 21891 | -2/Research | Incoming investigation squad redirected 21891 | -2/Research | Core integrity fell below 20% 21896 | -2/Research | Identified exit to Garrison 21896 | -2/Research | Entered Garrison 21899 | -2/Garrison | Expanded RIF knowledge: Signal Jamming 21901 | -2/Garrison | Lost 24 parts (2p7n8u7w) 21906 | -2/Garrison | Triggered checkpoint 21919 | -2/Garrison | Destroyed by G-73 Enforcer with Heavy Laser Last Messages --------------- Access door unlocked. 21896_ EXIT=UNLOCKED: GARRISON LOCATION=GARRISON GOAL=ESCAPE 21896_ Receiving FarCom transmissions... 21898_ Initiating installation procedure... 21899_ Expanded RIF knowledge: Signal Jamming. 21903_ System corrupted: Matter fused (-5). 21906_ Beams of light sweep through the air. An alarm sounds. 21907_ C-30 ARC bursts open, deploying its payload. 21907_ G-73 Enforcer unfolds itself. 21914_ Triggered Stasis Trap. 21914_ A bubble of rippling energy engulfs the area. 21914_ Field strength at 94. 21914_ Field strength at 88. 21915_ Field strength at 82. 21916_ Field strength at 69. 21917_ Field strength at 58. 21918_ Field strength at 40. [Achievement: 30k Club] Map ----- +----------------------------------------------------+ | ?????????????????????????????????????????????????? | | ???????????????????????????#?????????????????????? | | ???????????????????????????!?????????????????????? | | ??????????????????????????? ?????????????????????? | | ??????????????????????????? ?????????????????????? | | ??????????????????????????? ?????????????????????? | | ?????????????????????????## #????????????????????? | | ?????????????????????????# #????????????????????? | | ?????????????????????????# #????????????????????? | | ?????????????????????????# #????????????????????? | | ?????????????????????Y???# #????????????????????? | | ?????????????????????????# #????????????????????? | | ????????????????????????? #????????????????????? | | ????????????????????????? #????????????????????? | | ?????????????????????????# #????????????????????? | | ?????????????????????????# #??????????????????### | | ?????????????????????????# #??????????????????#"" | | ?????????????????????????# #??????????????????#" | | ?????????????????????????# #??????????????????#" | | ?????????????????????????# #??????????????????#" | | ?????????????????????????# #??????????????????## | | ?????????????????????????# #??????????????????# | | ???????????????########### #################### | | ???????????????# g | | ???????????????# g | | ???????????????# @ gg | | ???????????????# ################# ########### | | ???????????????#???????????????????# " #?????????? | | ???????????????????????????????????##+##?????????? | | ????????????????????????????????????#%#??????????? | | ????????????????????????????????????# #??????????? | | ???????????????????????????????????? #??????????? | | ????????????gg??????????????????????###??????????? | | ?????????????????????????????????????????????????? | | ?????????????????????????????????????????????????? | | ?????????????????????????????????????????????????? | | ?????????????????????????????????????????????????? | | ?????????????????????????????????????????????????? | | ?????????????????????????????????????????????????? | | ????????????????????g????????????????????????????? | | ???????????BB???????g????????????????????????????? | | ???????????BB???????g????????????????????????????? | | ?????????????????????????????????????????????????? | | ?????????????????????????????????????????????????? | | ?????????????????????????????????????????????????? | | ?????????????????????????????????????????????????? | | ?????????????????????????????????????????????????? | | ?????????????????????????????????????????????????? | | ?????????????????????????????????????????????????? | | ?????????????????????????????????????????????????? | +----------------------------------------------------+ Best States ------------- Heat Dissipation 69 Coolant Potential 80 Energy Generation 55 Energy Capacity 1200 Matter Stores 300 Matter Capacity 300 Sight Range 23 Terrain Scan Range 20 Terrain Scan Density 10 Cloak Strength 5 Power Amplification 30 Armor Coverage 1125 Resistance: KI 30 Resistance: TH 25 Resistance: EM 50 Phase Shifting 5 Evasion (%) 50 Targeting Accuracy 13 Target Analysis 8 Recoil Reduction 11 Particle Charging 25 Relay Coupler Types 99 Relay Coupler Value 3 Item Schematics ----------------- Hcp. Storage Unit | -10/Materials | Hacked Hvy. Armor Plating | -8/Materials | Hacked Combat Drone Bay | -7/Data Miner | Free Lgt. Regenerative Plating | -7/Data Miner | Free Cmb. Gravmag System | -7/Data Miner | Free Exp. Cesium-ion Thruster | -7/Data Miner | Free Exp. Terrain Scanner | -7/Data Miner | Free Assault Drone Bay | -5/Zhirov | Free Exp. Heat Sink | -5/Zhirov | Free Exp. Optical Array | -5/Zhirov | Free Imp. Arc Thrower | -5/Zhirov | Free Robot Schematics ------------------ S-10 Pest | -10/Materials | Hacked S-27 Virus | -7/Data Miner | Free G-50 Soldier | -7/Data Miner | Free X-72 Disruptor | -7/Data Miner | Free I-36 Angel | -7/Data Miner | Free Fabricated ------------ Hvy. Armor Plating | x1 | -7/Factory X-72 Disruptor | x2 | -5/Factory Hcp. Storage Unit | x1 | -3/Research Alien Tech Used ----------------- Core Expander Integrated Dissipator Transdimensional Reconstructor Achievements -------------- 30k Club Error 47 Quick And Dirty Challenges ------------ None Game ------ Seed FissionThiefLauncher Manual? 0 Play Time 08:16:19 Cumulative 78.3 hours Start 2021.05.18 @ 21:18:04 End 2021.06.09 @ 22:19:52 Sessions 57 Manual Loads 0 Difficulty Rogue Special Mode None Game No. 24 Rogue 24 Adventurer 0 Explorer 0 Win Type - Total 0 Types 0/0/0/0/0/0/0/0/0 Lore% 37 Gallery% 47 Achievement% 38 Wizard Run 0 Options --------- ASCII 0 Keyboard 0 Movement Numpad Keybinds 0 Fullscreen 1 Font 18/SmallcapsGlow Map View 76x50 Tactical HUD 1 Map Filters NONE Filters NONE Steam 1 RUN: c20a4133-62a0-489e-9e86-de342e91f75b